fUSD/lending_fUSD_20251017
["ID","MTS","AMOUNT","RATE_DAILY","PERIOD"]
[391579288,1760675568520,-500.0,0.00014973,2]
[391579289,1760675568544,-500.0,0.00014973,2]
[391579290,1760675568567,-500.0,0.00015521,2]
[391579291,1760675568588,-500.0,0.00015521,2]
[391579292,1760675568610,-300.0,0.000164,2]
[391579293,1760675568633,-250.0,0.000164,2]
[391579294,1760675568655,-300.0,0.000164,2]
[391579295,1760675568677,-2500.0,0.000164,2]
[391579296,1760675568700,-300.0,0.00018436,2]
[391579297,1760675568722,-165.56643105,0.00018436,2]
[391579303,1760675629201,980.0,0.00027,120]
[391579305,1760675703704,180.0,0.00022876,120]
[391579317,1760675815194,1098.27,0.00026699,120]
[391579323,1760675971159,421.25,7.29e-05,2]
[391579324,1760675971348,421.25,7.674e-05,2]
[391579325,1760675971533,421.25,8.058e-05,2]
[391579326,1760675971738,421.25,8.442e-05,2]
[391579327,1760675971932,421.25,8.825e-05,2]
[391579328,1760675972141,421.25,9.209e-05,2]
[391579329,1760675972343,421.25,9.593e-05,2]
[391579330,1760675972550,421.25,9.976e-05,2]
[391579331,1760675972748,421.25,0.0001036,2]
[391579332,1760675972958,421.25,0.00010744,2]
[391579333,1760675973371,421.25,0.00011127,2]
[391579334,1760675973591,421.25,0.00011511,2]
[391579335,1760675973810,421.25,0.00011895,2]
[391579336,1760675974004,421.25,0.00012278,2]
[391579337,1760675974257,421.25,0.00012662,2]
[391579338,1760675984236,-189.06328597,0.00013046,2]
[391579339,1760675985835,-205.4509289,0.00013046,2]
[391579431,1760676631676,-26.73578513,0.00013046,2]
[391579432,1760676631688,-205.4509289,0.00013238,2]
[391579433,1760676631699,-421.25,0.0001343,2]
[391579434,1760676631710,-421.25,0.00013813,2]
[391579435,1760676631721,-421.25,0.00014197,2]
[391579436,1760676631731,-195.0,0.0001435,2]
[391579437,1760676631742,-250.0,0.0001435,2]
[391579438,1760676631753,-300.0,0.00014579,2]
[391579439,1760676631763,-1200.0,0.00014579,2]
[391579440,1760676631774,-300.0,0.0001458,2]
[391579441,1760676631785,-421.25,0.00014581,2]
[391579442,1760676631797,-206.23,0.00014581,2]
[391579443,1760676631807,-1500.0,0.00014581,2]
[391579444,1760676631818,-168.6294,0.00014809,2]
[391579445,1760676631829,-250.0,0.00017238,2]
[391579446,1760676631839,-1258.95388609,0.00018,2]
[391579447,1760676631853,-942.71067945,0.00018,2]
[391579448,1760676631863,-943.03470804,0.00021817,3]
[391579449,1760676631876,-1223.29132686,0.00021817,3]
[391579450,1760676631888,-333.6739651,0.00021817,3]
[391579451,1760676631899,-2914.23234853,0.00021917,2]
[391579452,1760676631909,-200.0,0.00022329,2]
[391579454,1760676631920,-150.0,0.00022428,2]
[391579455,1760676631930,-316.40504913,0.00022673,2]
[391579456,1760676631951,-5512.05964794,0.00022673,2]
[391579457,1760676631962,-2035.2484726,0.00023078,2]
[391579459,1760676631973,-1597.084943,0.00023078,2]
[391579461,1760676631982,-744.2778572,0.00023123,2]
[391579463,1760676631993,-363.4292474,0.00023123,2]
[391579465,1760676632003,-1011.0,0.000233,2]
[391579467,1760676632013,-150.0,0.00023414,2]
[391579468,1760676632023,-151.0,0.00023415,2]
[391579470,1760676632034,-151.0,0.00023415,2]
[391579471,1760676632044,-151.0,0.00023415,2]
[391579472,1760676632057,-215.12912554,0.00023415,2]
[391579473,1760676632068,-200.0,0.00023415,2]
[391579474,1760676632079,-197.25900208,0.00023415,2]
[391579475,1760676632090,-611.4762398,0.00023415,2]
[391579476,1760676632100,-500.0,0.00023415,2]
[391579477,1760676632111,-151.0,0.00023415,2]
[391579478,1760676632122,-500.0,0.00023415,2]
[391579479,1760676632132,-151.0,0.00023415,2]
[391579480,1760676632143,-500.0,0.00023415,2]
[391579481,1760676632153,-151.0,0.00023415,2]
[391579482,1760676632163,-500.0,0.00023415,2]
[391579483,1760676632173,-151.0,0.00023415,2]
[391579484,1760676632185,-500.0,0.00023415,2]
[391579485,1760676632194,-151.0,0.00023415,2]
[391579486,1760676632205,-151.0,0.00023415,2]
[391579487,1760676632215,-500.0,0.00023415,2]
[391579488,1760676632225,-151.0,0.00023415,2]
[391579489,1760676632235,-151.0,0.00023415,2]
[391579490,1760676632246,-500.0,0.00023415,2]
[391579491,1760676632256,-276.4752803,0.00023415,2]
[391579492,1760676632266,-151.0,0.00023415,2]
[391579494,1760676632276,-500.0,0.00023415,2]
[391579495,1760676632286,-151.0,0.00023415,2]
[391579496,1760676632297,-500.0,0.00023415,2]
[391579497,1760676632307,-151.0,0.00023415,2]
[391579498,1760676632318,-567.99451821,0.00023415,2]
[391579499,1760676632328,-151.0,0.00023415,2]
[391579500,1760676632338,-200.0,0.00023415,2]
[391579501,1760676632348,-151.0,0.00023415,2]
[391579502,1760676632358,-151.0,0.00023415,2]
[391579503,1760676632368,-151.0,0.00023415,2]
[391579504,1760676632379,-151.0,0.00023415,2]
[391579505,1760676632389,-151.0,0.00023415,2]
[391579506,1760676632399,-151.0,0.00023415,2]
[391579507,1760676632409,-151.0,0.00023415,2]
[391579508,1760676632420,-151.0,0.00023415,2]
[391579509,1760676632430,-151.0,0.00023415,2]
[391579510,1760676632440,-151.0,0.00023415,2]
[391579511,1760676632450,-214.83958116,0.00023415,2]
[391579512,1760676632462,-333.64663694,0.00023415,2]
[391579513,1760676632472,-8742.69704561,0.00023429,2]
[391579514,1760676632482,-1289.8,0.00023646,2]
[391579515,1760676632493,-1098.27,0.00023733,2]
[391579516,1760676632503,-2530.19,0.00023762,2]
[391579517,1760676632513,-250.0,0.00023762,2]
[391579518,1760676632523,-2000.0,0.000238,2]
[391579519,1760676632533,-150.0,0.00023835,2]
[391579520,1760676632544,-159.68,0.00023836,2]
[391579521,1760676632554,-3508.2972319,0.00023859,2]
[391579522,1760676632567,-389.4727681,0.00023859,2]
[391579523,1760676632577,-900.58893971,0.0002393,2]
[391579524,1760676632599,-99.41106029,0.0002393,2]
[391579525,1760676632610,-200.0,0.00023963,2]
[391579526,1760676632620,-878.43299503,0.00023994,2]
[391579527,1760676632631,-200.0,0.00024025,2]
[391579528,1760676632640,-904.19,0.00024025,2]
[391579529,1760676632650,-878.43299503,0.00024152,2]
[391579530,1760676632660,-500.0,0.0002425,2]
[391579531,1760676632670,-503.51592685,0.0002425,2]
[391579532,1760676632680,-878.43299505,0.00024586,2]
[391579533,1760676632690,-1000.0,0.00024658,2]
[391579534,1760676632700,-2500.0,0.00024773,3]
[391579535,1760676632710,-417.48,0.00024821,30]
[391579536,1760676632719,-860.8332082,0.00024839,2]
[391579537,1760676632730,-502.26318562,0.00024873,2]
[391579538,1760676632740,-7313.71693604,0.00024873,2]
[391579539,1760676632760,-294.84302077,0.00024873,2]
[391579540,1760676632772,-1734.97613003,0.00024873,2]
[391579541,1760676632784,-1902.73691266,0.00024873,2]
[391579542,1760676632796,-1133.93352267,0.00024873,2]
[391579543,1760676632813,-1171.775,0.00024873,2]
[391579546,1760676637635,-470.96836491,0.00024873,2]
[391579547,1760676637745,-11247.36760072,0.00024873,2]
[391579548,1760676637755,-1325.04208303,0.0002488,2]
[391579549,1760676637764,-2850.39797,0.00024889,2]
[391579550,1760676637774,-527.5916,0.00024959,10]
[391579551,1760676637788,-500.0,0.00024979,2]
[391579552,1760676637798,-541.23024678,0.00024979,2]
[391579554,1760676637808,-500.0,0.00024979,2]
[391579556,1760676637818,-150.99,0.0002498,2]
[391579558,1760676637827,-499.99,0.0002498,2]
[391579560,1760676637837,-3640.08,0.0002498,2]
[391579562,1760676637847,-22043.6852061,0.0002498,2]
[391579684,1760676639741,-4599.0638606,0.0002498,2]
[391579685,1760676639852,-657.80376061,0.0002498,2]
[391579686,1760676639910,-37241.82717269,0.0002498,2]
[391579687,1760676639920,-9999.99,0.0002498,2]
[391579688,1760676639930,-999.99,0.0002498,2]
[391579689,1760676639940,-150.99,0.0002498,2]
[391579690,1760676640328,-1181.51,0.0002498,2]
[391579691,1760676640340,-9999.99,0.0002498,2]
[391579692,1760676640349,-9999.99,0.0002498,2]
[391579693,1760676640359,-1325.76,0.0002498,2]
[391579694,1760676640369,-5958.52,0.0002498,2]
[391579695,1760676640378,-299.99,0.0002498,7]
[391579696,1760676640388,-666.0,0.00024992,3]
[391579697,1760676640402,-150.0,0.00024992,2]
[391579698,1760676640411,-1122.02381628,0.00025,7]
[391579699,1760676640422,-166.66,0.00025225,30]
[391579700,1760676640432,-1325.04208298,0.00025291,2]
[391579701,1760676640442,-1091.0,0.00025324,2]
[391579702,1760676640452,-991.871,0.000254,10]
[391579703,1760676640461,-174.33,0.000254,10]
[391579704,1760676640471,-1325.04208298,0.00025702,2]
[391579705,1760676640481,-166.66,0.00025756,30]
[391579706,1760676640491,-589.25,0.0002577,2]
[391579707,1760676640500,-151.56,0.00025792,2]
[391579708,1760676640510,-150.0,0.00025792,4]
[391579709,1760676640520,-150.0,0.00025792,4]
[391579710,1760676640530,-150.0,0.00025792,4]
[391579711,1760676640540,-150.0,0.00025792,4]
[391579712,1760676640550,-150.0,0.00025792,4]
[391579713,1760676640560,-150.0,0.00025792,4]
[391579714,1760676640569,-150.0,0.00025792,4]
[391579715,1760676640579,-150.00000001,0.00025792,4]
[391579716,1760676640591,-150.0,0.00025792,4]
[391579717,1760676640601,-150.0,0.00025792,4]
[391579718,1760676640611,-150.0,0.00025792,4]
[391579719,1760676640621,-150.0,0.00025792,4]
[391579720,1760676640631,-150.0,0.00025792,4]
[391579721,1760676640641,-2035.2484726,0.00025824,2]
[391579722,1760676640651,-1597.084943,0.00025824,2]
[391579723,1760676640660,-150.0,0.00025865,4]
[391579724,1760676640670,-668.65185757,0.00025869,2]
[391579725,1760676640680,-9211.34798985,0.00025869,2]
[391579726,1760676640690,-151.0,0.00025869,2]
[391579727,1760676640699,-695.39793187,0.00025869,2]
[391579728,1760676640709,-151.0,0.00025869,2]
[391579729,1760676640719,-151.0,0.00025869,2]
[391579730,1760676640729,-151.0,0.00025869,2]
[391579731,1760676640738,-322.6107,0.00025869,2]
[391579732,1760676640748,-151.0,0.00025869,2]
[391579733,1760676640758,-151.0,0.00025869,2]
[391579734,1760676640768,-151.0,0.00025869,2]
[391579735,1760676640778,-151.0,0.00025869,2]
[391579736,1760676640788,-151.0,0.00025869,2]
[391579737,1760676640799,-151.0,0.00025869,2]
[391579738,1760676640809,-151.0,0.00025869,2]
[391579739,1760676640819,-152.53493316,0.00025869,2]
[391579740,1760676640830,-151.0,0.00025869,2]
[391579741,1760676640840,-267.46074303,0.00025869,2]
[391579742,1760676640850,-363.4292474,0.00025887,2]
[391579743,1760676640860,-122.2254453,0.00025895,2]
[391579764,1760676642938,-453.0,0.00025895,2]
[391579924,1760676645634,-169.0524119,0.00025895,2]
[391579925,1760676645645,-6464.64330313,0.00025924,2]
[391579926,1760676645799,-302.0,0.00025924,2]
[391579927,1760676645857,-2785.52456234,0.00025924,2]
[391579928,1760676645866,-150.0,0.00025939,4]
[391579929,1760676645876,-1200.0,0.0002594,2]
[391579930,1760676645887,-462.66,0.00025973,2]
[391579931,1760676645896,-168.24,0.00025973,2]
[391579932,1760676645906,-165.93512699,0.00025973,2]
[391579933,1760676645919,-2.30487301,0.00025973,2]
[391579935,1760676645930,-168.18,0.00025973,2]
[391579936,1760676645939,-3662.0375691,0.00025979,2]
[391579937,1760676645959,-6243.5605074,0.00025979,2]
[391579938,1760676645970,-150.0,0.00025983,4]
[391579940,1760676645980,-150.0,0.00026012,4]
[391579941,1760676645990,-2603.69915067,0.00026034,2]
[391579943,1760676646003,-7668.40605466,0.00026034,2]
[391579944,1760676646012,-589.25,0.00026044,2]
[391579945,1760676646023,-150.0,0.00026052,4]
[391579946,1760676646033,-150.0,0.00026086,4]
[391579948,1760676646043,-10652.17309792,0.00026089,2]
[391579949,1760676646054,-150.0,0.0002611,4]
[391579950,1760676646068,-1325.04208298,0.00026113,2]
[391579951,1760676646078,-11046.30350255,0.00026144,2]
[391579952,1760676646089,-207.4,0.00026154,2]
[391579954,1760676646099,-150.0,0.00026159,4]
[391579956,1760676646110,-150.0,0.00026174,4]
[391579957,1760676646120,-175.81836778,0.00026179,2]
[391579958,1760676646130,-5961.07678249,0.00026199,2]
[391579962,1760676646439,-174.66182502,0.00026199,2]
[391579971,1760676769404,1014.68935363,0.00027397,120]
[391579977,1760677537168,200.61,0.00027,120]
[391580008,1760677692453,1580.0,0.00027397,120]
[391580013,1760677824395,-463.91,0.00013699,2]
[391580014,1760677824434,-195.0,0.00014377,2]
[391580015,1760677824466,-195.0,0.00015068,2]
[391580016,1760677824499,-250.0,0.00015068,2]
[391580017,1760677824529,-300.0,0.00015068,2]
[391580018,1760677824564,-186.59130588,0.00015068,2]
[391580019,1760677824599,-163.68745285,0.00016005,2]
[391580034,1760677831765,-151.0,0.00016309,2]
[391580035,1760677831785,-144.99999997,0.00016555,2]
[391580036,1760677831803,-6.00000003,0.00016555,2]
[391580037,1760677831818,-151.0,0.00016835,2]
[391580038,1760677831833,-250.0,0.000181,2]
[391580039,1760677831847,-179.39999997,0.00020187,2]
[391580040,1760677831865,-284.51000003,0.00020187,2]
[391580041,1760677831878,-181.48532847,0.00020219,2]
[391580042,1760677831896,-318.51467153,0.00020219,2]
[391580043,1760677831909,-993.96642817,0.00020777,3]
[391580044,1760677831922,-500.0,0.00020877,2]
[391580045,1760677831935,-152.72464364,0.00022599,43]
[391580046,1760677831948,-1200.0,0.00022699,2]
[391580047,1760677831961,-300.0,0.00022699,2]
[391580048,1760677831974,-305.74,0.000227,2]
[391580049,1760677831986,-2000.0,0.000227,2]
[391580050,1760677831999,-152.72464362,0.00022948,44]
[391580051,1760677832012,-152.72464362,0.00023297,44]
[391580052,1760677832024,-152.72464362,0.00023646,45]
[391580053,1760677832038,-3868.15,0.00023762,2]
[391580055,1760677832051,-166.66,0.00023982,30]
[391580056,1760677832064,-152.72464362,0.00023996,46]
[391580057,1760677832078,-166.66,0.00024259,2]
[391580058,1760677832092,-152.72464362,0.00024345,47]
[391580059,1760677832105,-2975.55,0.00024447,2]
[391580060,1760677832122,-166.66,0.00024487,30]
[391580062,1760677832136,-150.0,0.00024487,2]
[391580065,1760677832149,-471.4,0.00024626,2]
[391580066,1760677832163,-264.33579966,0.00024626,2]
[391580067,1760677832176,-151.20970994,0.00024626,2]
[391580068,1760677832190,-151.15528066,0.00024626,2]
[391580069,1760677832203,-500.0,0.00024626,2]
[391580070,1760677832216,-150.0,0.00024626,2]
[391580071,1760677832230,-150.0,0.00024626,2]
[391580072,1760677832243,-151.44562645,0.00024626,2]
[391580073,1760677832256,-150.0,0.00024626,2]
[391580074,1760677832269,-500.0,0.00024626,2]
[391580075,1760677832282,-500.0,0.00024626,2]
[391580076,1760677832294,-150.0,0.00024626,2]
[391580077,1760677832307,-150.0,0.00024626,2]
[391580078,1760677832320,-155.76918918,0.00024626,2]
[391580079,1760677832333,-500.0,0.00024626,2]
[391580080,1760677832345,-808.0,0.00024626,2]
[391580081,1760677832357,-150.0,0.00024626,2]
[391580082,1760677832369,-200.0,0.00024626,2]
[391580083,1760677832382,-151.0,0.00024626,2]
[391580084,1760677832394,-151.0,0.00024626,2]
[391580085,1760677832407,-151.0,0.00024626,2]
[391580086,1760677832421,-151.0,0.00024626,2]
[391580087,1760677832433,-151.0,0.00024626,2]
[391580088,1760677832445,-151.0,0.00024626,2]
[391580089,1760677832462,-151.0,0.00024626,2]
[391580090,1760677832475,-151.0,0.00024626,2]
[391580091,1760677832487,-151.0,0.00024626,2]
[391580092,1760677832500,-151.0,0.00024626,2]
[391580093,1760677832512,-151.0,0.00024626,2]
[391580094,1760677832525,-200.0,0.00024626,2]
[391580095,1760677832539,-151.0,0.00024626,2]
[391580096,1760677832551,-151.0,0.00024626,2]
[391580097,1760677832563,-151.0,0.00024626,2]
[391580098,1760677832576,-151.0,0.00024626,2]
[391580099,1760677832589,-151.0,0.00024626,2]
[391580100,1760677832602,-151.0,0.00024626,2]
[391580101,1760677832614,-151.0,0.00024626,2]
[391580102,1760677832626,-151.0,0.00024626,2]
[391580103,1760677832638,-151.0,0.00024626,2]
[391580104,1760677832655,-151.0,0.00024626,2]
[391580105,1760677832666,-151.0,0.00024626,2]
[391580106,1760677832678,-151.0,0.00024626,2]
[391580107,1760677832690,-151.0,0.00024626,2]
[391580108,1760677832703,-151.0,0.00024626,2]
[391580109,1760677832715,-182.74839534,0.00024626,2]
[391580110,1760677832728,-200.0,0.00024626,2]
[391580111,1760677832740,-5000.0,0.00024641,2]
[391580112,1760677832753,-615.0,0.00024649,2]
[391580113,1760677832766,-420.0,0.00024649,2]
[391580114,1760677832778,-4682.94,0.00024668,2]
[391580115,1760677832789,-500.0,0.00024681,2]
[391580116,1760677832801,-150.0,0.00024681,2]
[391580117,1760677832812,-150.0,0.00024681,2]
[391580118,1760677832824,-150.0,0.00024681,2]
[391580119,1760677832837,-500.0,0.00024681,2]
[391580120,1760677832849,-500.0,0.00024681,2]
[391580121,1760677832861,-152.56612552,0.00024681,2]
[391580122,1760677832873,-150.0,0.00024681,2]
[391580123,1760677832885,-500.0,0.00024681,2]
[391580124,1760677832898,-808.0,0.00024681,2]
[391580125,1760677832911,-185.41247812,0.00024681,2]
[391580126,1760677832923,-500.0,0.00024736,2]
[391580127,1760677832934,-150.0,0.00024736,2]
[391580128,1760677832946,-150.0,0.00024736,2]
[391580129,1760677832957,-500.0,0.00024736,2]
[391580130,1760677832969,-500.0,0.00024736,2]
[391580131,1760677832981,-203.74813304,0.00024736,2]
[391580132,1760677832995,-808.0,0.00024736,2]
[391580133,1760677833008,-472.23189463,0.0002479,2]
[391580134,1760677833019,-150.0,0.0002479,2]
[391580135,1760677833031,-150.0,0.0002479,2]
[391580136,1760677833043,-500.0,0.0002479,2]
[391580137,1760677833055,-500.0,0.0002479,2]
[391580138,1760677833068,-808.0,0.0002479,2]
[391580139,1760677833080,-203.58785703,0.00024845,2]
[391580140,1760677833092,-150.0,0.00024845,2]
[391580141,1760677833103,-500.0,0.00024845,2]
[391580142,1760677833116,-500.0,0.00024845,2]
[391580143,1760677833128,-808.0,0.00024845,2]
[391580144,1760677833140,-250.0,0.000249,2]
[391580145,1760677833152,-500.0,0.000249,2]
[391580146,1760677833164,-500.0,0.000249,2]
[391580147,1760677833178,-808.0,0.000249,2]
[391580148,1760677833190,-471.4,0.000249,2]
[391580149,1760677833203,-500.0,0.00024955,2]
[391580150,1760677833215,-500.0,0.00024955,2]
[391580151,1760677833227,-808.0,0.00024955,2]
[391580152,1760677833240,-150.99,0.0002498,2]
[391580153,1760677833251,-3798.33,0.0002498,2]
[391580154,1760677833264,-6292.75255678,0.0002498,2]
[391580155,1760677835037,-13707.23744322,0.0002498,2]
[391580156,1760677835048,-250.0,0.00024988,7]
[391580157,1760677835057,-166.66,0.00024992,30]
[391580158,1760677835067,-500.0,0.0002501,2]
[391580159,1760677835078,-500.0,0.0002501,2]
[391580160,1760677835087,-808.0,0.0002501,2]
[391580161,1760677835097,-150.06,0.00025031,2]
[391580162,1760677835107,-500.0,0.00025064,2]
[391580163,1760677835118,-242.32254047,0.00025064,2]
[391580164,1760677835128,-808.0,0.00025064,2]
[391580165,1760677835137,-260.0,0.00025096,2]
[391580166,1760677835147,-516.03617143,0.00025119,2]
[391580167,1760677835157,-808.0,0.00025119,2]
[391580168,1760677835167,-808.0,0.00025174,2]
[391580169,1760677835176,-471.4,0.00025174,2]
[391580170,1760677835186,-1000.0,0.00025212,2]
[391580171,1760677835196,-1000.0,0.00025212,2]
[391580172,1760677835206,-575.47880964,0.00025212,2]
[391580173,1760677835216,-151.0,0.00025212,2]
[391580174,1760677835226,-9211.34798985,0.00025212,2]
[391580175,1760677835236,-500.0,0.00025212,2]
[391580176,1760677835244,-668.65185757,0.00025212,2]
[391580177,1760677835253,-151.0,0.00025212,2]
[391580178,1760677835263,-500.0,0.00025212,2]
[391580179,1760677835272,-151.0,0.00025212,2]
[391580180,1760677835281,-151.0,0.00025212,2]
[391580181,1760677835291,-500.0,0.00025212,2]
[391580182,1760677835301,-161.87821488,0.00025212,2]
[391580183,1760677835310,-151.0,0.00025212,2]
[391580184,1760677835320,-500.0,0.00025212,2]
[391580185,1760677835330,-151.0,0.00025212,2]
[391580186,1760677835340,-500.0,0.00025212,2]
[391580187,1760677835350,-151.0,0.00025212,2]
[391580188,1760677835359,-500.0,0.00025212,2]
[391580189,1760677835369,-151.0,0.00025212,2]
[391580190,1760677835379,-500.0,0.00025212,2]
[391580191,1760677835389,-151.0,0.00025212,2]
[391580192,1760677835399,-239.79609754,0.00025212,2]
[391580193,1760677835408,-500.0,0.00025212,2]
[391580194,1760677835419,-154.12595973,0.00025212,2]
[391580195,1760677835428,-282.43106553,0.00025212,2]
[391580196,1760677835438,-151.0,0.00025212,2]
[391580197,1760677835447,-500.0,0.00025212,2]
[391580198,1760677835457,-151.0,0.00025212,2]
[391580199,1760677835466,-500.0,0.00025212,2]
[391580200,1760677835476,-151.0,0.00025212,2]
[391580201,1760677835486,-500.0,0.00025212,2]
[391580202,1760677835495,-151.0,0.00025212,2]
[391580203,1760677835505,-250.0,0.00025212,2]
[391580204,1760677835515,-250.0,0.00025212,2]
[391580205,1760677835525,-250.0,0.00025212,2]
[391580206,1760677835535,-151.0,0.00025212,2]
[391580207,1760677835547,-250.0,0.00025212,2]
[391580208,1760677835558,-250.0,0.00025212,2]
[391580209,1760677835568,-250.0,0.00025212,2]
[391580210,1760677835579,-250.0,0.00025212,2]
[391580211,1760677835590,-250.0,0.00025212,2]
[391580212,1760677835599,-250.0,0.00025212,2]
[391580213,1760677835608,-250.0,0.00025212,2]
[391580214,1760677835618,-267.46074303,0.00025212,2]
[391580215,1760677835629,-250.0,0.00025212,2]
[391580216,1760677835640,-250.0,0.00025212,2]
[391580217,1760677835650,-250.0,0.00025212,2]
[391580218,1760677835660,-250.0,0.00025212,2]
[391580219,1760677835669,-250.0,0.00025212,2]
[391580220,1760677835678,-250.0,0.00025212,2]
[391580221,1760677835688,-250.0,0.00025212,2]
[391580222,1760677835698,-250.0,0.00025212,2]
[391580223,1760677835708,-151.0,0.00025212,2]
[391580224,1760677835718,-250.0,0.00025212,2]
[391580225,1760677835728,-268.08190151,0.00025212,2]
[391580226,1760677835738,-250.0,0.00025212,2]
[391580227,1760677835748,-695.39793187,0.00025212,2]
[391580228,1760677835758,-250.0,0.00025212,2]
[391580229,1760677835768,-250.0,0.00025212,2]
[391580230,1760677835778,-1000.0,0.00025212,2]
[391580231,1760677835788,-250.0,0.00025212,2]
[391580232,1760677835798,-1000.0,0.00025212,2]
[391580233,1760677835809,-1000.0,0.00025212,2]
[391580234,1760677835819,-220.0,0.00025212,2]
[391580235,1760677835830,-1000.0,0.00025212,2]
[391580236,1760677835841,-220.0,0.00025212,2]
[391580237,1760677835851,-1000.0,0.00025212,2]
[391580238,1760677835861,-220.0,0.00025212,2]
[391580239,1760677835872,-1000.0,0.00025212,2]
[391580240,1760677835882,-220.0,0.00025212,2]
[391580241,1760677835892,-1000.0,0.00025212,2]
[391580242,1760677835901,-220.0,0.00025212,2]
[391580243,1760677835911,-1000.0,0.00025212,2]
[391580244,1760677835921,-220.0,0.00025212,2]
[391580245,1760677835930,-1000.0,0.00025212,2]
[391580246,1760677835940,-250.0,0.00025212,2]
[391580247,1760677835950,-220.0,0.00025212,2]
[391580248,1760677835960,-1000.0,0.00025212,2]
[391580249,1760677835970,-220.0,0.00025212,2]
[391580250,1760677835980,-1000.0,0.00025212,2]
[391580251,1760677835989,-250.0,0.00025212,2]
[391580252,1760677835998,-236.85033637,0.00025212,2]
[391580253,1760677836008,-250.0,0.00025212,2]
[391580254,1760677836019,-250.0,0.00025212,2]
[391580255,1760677836029,-3000.0,0.00025212,2]
[391580256,1760677836039,-250.0,0.00025212,2]
[391580257,1760677836049,-3000.0,0.00025212,2]
[391580258,1760677836059,-250.0,0.00025212,2]
[391580259,1760677836069,-250.0,0.00025212,2]
[391580260,1760677836079,-3000.0,0.00025212,2]
[391580261,1760677836088,-250.0,0.00025212,2]
[391580262,1760677836098,-250.0,0.00025212,2]
[391580263,1760677836108,-3000.0,0.00025212,2]
[391580264,1760677836118,-250.0,0.00025212,2]
[391580265,1760677836127,-250.0,0.00025212,2]
[391580266,1760677836137,-3000.0,0.00025212,2]
[391580267,1760677836146,-250.0,0.00025212,2]
[391580268,1760677836156,-3000.0,0.00025212,2]
[391580269,1760677836166,-12.19525899,0.00025212,2]
[391580270,1760677836180,-237.80474101,0.00025212,2]
[391580271,1760677836189,-250.0,0.00025212,2]
[391580272,1760677836199,-3000.0,0.00025212,2]
[391580273,1760677836208,-371.09941357,0.00025212,2]
[391580274,1760677836218,-250.0,0.00025212,2]
[391580275,1760677836228,-1000.0,0.00025212,2]
[391580276,1760677836238,-250.0,0.00025212,2]
[391580277,1760677836250,-322.6107,0.00025212,2]
[391580278,1760677836260,-44.18916842,0.00025229,2]
[391580279,1760677836271,-763.81083158,0.00025229,2]
[391580280,1760677836281,-1281.75516942,0.0002526,2]
[391580281,1760677836293,-1376.97483058,0.0002526,2]
[391580282,1760677836303,-1579.54516942,0.00025267,2]
[391580283,1760677836318,-7972.62269605,0.00025267,2]
[391580284,1760677836327,-808.0,0.00025284,2]
[391580285,1760677836337,-323.00670552,0.00025299,2]
[391580286,1760677836358,-737.06100952,0.00025299,2]
[391580287,1760677836368,-523.2605988,0.00025322,2]
[391580288,1760677836380,-9382.3374777,0.00025322,2]
[391580289,1760677836390,-808.0,0.00025338,2]